fUST/lending_fUST_20240303
["ID","MTS","AMOUNT","RATE_DAILY","PERIOD"]
[316249808,1709412641760,-500.0,0.00023899,2]
[316249810,1709412641769,-8719.62455238,0.000239,2]
[316249811,1709412641778,-394.62118188,0.000239,2]
[316249813,1709412641787,-500.0,0.00023917,2]
[316249815,1709412641796,-500.0,0.00023917,2]
[316249817,1709412641805,-500.0,0.00023917,2]
[316249819,1709412641814,-500.0,0.00023917,2]
[316249821,1709412641823,-500.0,0.00023917,2]
[316249823,1709412641833,-500.0,0.00023917,2]
[316249825,1709412641842,-504.70722091,0.00023918,2]
[316249827,1709412641851,-1000.0,0.00023928,5]
[316249829,1709412641860,-1000.0,0.00023928,5]
[316249831,1709412641869,-643.3,0.00023957,3]
[316249833,1709412641877,-321.66,0.00023957,3]
[316249835,1709412641886,-13383.19670104,0.00023968,7]
[316249837,1709412641895,-5858.49070419,0.00023974,2]
[316249839,1709412641905,-500.0,0.00023995,2]
[316249841,1709412641914,-500.0,0.00023995,2]
[316249843,1709412641923,-500.0,0.00023995,2]
[316249845,1709412641932,-500.0,0.00023995,2]
[316249848,1709412641942,-500.0,0.00023995,2]
[316249850,1709412641951,-526.96,0.00023996,2]
[316249852,1709412641961,-500.0,0.00023996,2]
[316249854,1709412641970,-500.0,0.00023996,2]
[316249855,1709412641979,-500.0,0.00023996,2]
[316249858,1709412641989,-500.0,0.00023996,2]
[316249859,1709412641998,-500.0,0.00023996,2]
[316249861,1709412642010,-500.0,0.00023996,2]
[316249863,1709412642021,-500.0,0.00023996,2]
[316249865,1709412642031,-517.41176933,0.00023996,2]
[316249867,1709412642040,-500.0,0.00023996,2]
[316249869,1709412642049,-500.0,0.00023996,2]
[316249871,1709412642058,-500.0,0.00023996,2]
[316249875,1709412642078,-500.0,0.00023996,2]
[316249877,1709412642088,-174.73,0.00023996,2]
[316249879,1709412642097,-2000.54,0.00023996,2]
[316249881,1709412642107,-2000.54,0.00023996,2]
[316249883,1709412642116,-504.98,0.00023996,2]
[316249885,1709412642125,-500.0,0.00023996,2]
[316249887,1709412642135,-500.0,0.00023996,2]
[316249889,1709412642144,-509.74,0.00023996,2]
[316249891,1709412642154,-1066.21,0.00023996,2]
[316249893,1709412642163,-500.0,0.00023996,2]
[316249895,1709412642173,-772.36,0.00023996,2]
[316249897,1709412642182,-506.27596737,0.00023996,2]
[316249899,1709412642193,-996.72,0.00023996,2]
[316249901,1709412642203,-500.0,0.00023996,2]
[316249903,1709412642212,-500.0,0.00023996,2]
[316249905,1709412642221,-500.0,0.00023997,2]
[316249907,1709412642230,-500.0,0.00023997,2]
[316249909,1709412642240,-500.0,0.00023997,2]
[316249911,1709412642249,-500.0,0.00023997,2]
[316249913,1709412642258,-500.0,0.00023997,2]
[316249915,1709412642268,-500.0,0.00023997,2]
[316249917,1709412642277,-500.0,0.00023997,2]
[316249919,1709412642289,-500.0,0.00023997,2]
[316249921,1709412642298,-500.0,0.00023997,2]
[316249923,1709412642309,-500.0,0.00023997,2]
[316249925,1709412642318,-500.0,0.00023997,2]
[316249927,1709412642330,-500.0,0.00023997,2]
[316249929,1709412642340,-500.0,0.00023997,2]
[316249931,1709412642349,-500.0,0.00023997,2]
[316249933,1709412642359,-500.0,0.00023997,2]
[316249935,1709412642370,-500.0,0.00023997,2]
[316249937,1709412642379,-2000.54,0.00023997,2]
[316249939,1709412642389,-2000.54,0.00023997,2]
[316249941,1709412642399,-500.0,0.00023997,2]
[316249943,1709412642409,-337.06,0.00023997,2]
[316249945,1709412642419,-568.58,0.00023997,2]
[316249947,1709412642428,-509.74,0.00023997,2]
[316249949,1709412642438,-500.0,0.00023997,2]
[316249951,1709412642447,-344.06043892,0.00023997,2]
[316249953,1709412642456,-1066.21,0.00023997,2]
[316249955,1709412642465,-500.0,0.00023997,2]
[316249957,1709412642475,-500.0,0.00023997,2]
[316249959,1709412642485,-500.0,0.00023997,2]
[316249961,1709412642494,-996.72,0.00023997,2]
[316249963,1709412642503,-500.0,0.00023997,2]
[316249965,1709412642513,-500.0,0.00023997,2]
[316249967,1709412642523,-500.0,0.00023997,2]
[316249969,1709412642533,-500.0,0.00023997,2]
[316249971,1709412642542,-155.23588267,0.00023998,2]
[316249973,1709412642551,-155.69178995,0.00023998,2]
[316249975,1709412642561,-400.75162755,0.00023998,2]
[316249977,1709412642570,-1085.27869327,0.00023998,2]
[316249979,1709412642580,-235.17872102,0.00023998,2]
[316249981,1709412642590,-557.44319736,0.00023998,2]
[316249983,1709412642599,-155.25964941,0.00023998,2]
[316249985,1709412642608,-623.38533298,0.00023998,2]
[316249987,1709412642617,-349.58820103,0.00023998,2]
[316249989,1709412642627,-155.18622347,0.00023998,2]
[316249991,1709412642636,-649.27585788,0.00023998,2]
[316249993,1709412642645,-342.43862379,0.00023998,2]
[316249995,1709412642654,-1238.24029911,0.00023998,2]
[316249997,1709412642663,-429.13988284,0.00023998,2]
[316249999,1709412642673,-500.0,0.00023998,2]
[316250001,1709412642682,-500.0,0.00023998,2]
[316250003,1709412642692,-500.0,0.00023998,2]
[316250005,1709412642702,-468.96156398,0.00023998,2]
[316250007,1709412642711,-500.0,0.00023998,2]
[316250009,1709412642721,-500.0,0.00023998,2]
[316250011,1709412642730,-425.34,0.00023998,2]
[316250013,1709412642740,-400.0,0.00023998,2]
[316250015,1709412642749,-155.44423554,0.00023998,2]
[316250017,1709412642759,-2573.28620982,0.00023998,2]
[316250020,1709412642769,-500.0,0.00023998,2]
[316250021,1709412642778,-500.0,0.00023998,2]
[316250023,1709412642787,-166.83241099,0.00023998,2]
[316250026,1709412642797,-500.0,0.00023998,2]
[316250028,1709412642807,-1741.55152867,0.00023998,2]
[316250030,1709412642817,-500.0,0.00023998,2]
[316250032,1709412642826,-500.0,0.00023998,2]
[316250034,1709412642836,-500.0,0.00023998,2]
[316250036,1709412642846,-500.0,0.00023998,2]
[316250038,1709412642855,-500.0,0.00023998,2]
[316250040,1709412642864,-500.0,0.00023998,2]
[316250042,1709412642873,-500.0,0.00023998,2]
[316250044,1709412642883,-2000.54,0.00023998,2]
[316250046,1709412642892,-2000.54,0.00023998,2]
[316250048,1709412642901,-2000.54,0.00023998,2]
[316250050,1709412642911,-2000.54,0.00023998,2]
[316250052,1709412642920,-2000.54,0.00023998,2]
[316250054,1709412642931,-2000.54,0.00023998,2]
[316250056,1709412642940,-2000.54,0.00023998,2]
[316250058,1709412642951,-500.0,0.00023998,2]
[316250060,1709412642961,-500.0,0.00023998,2]
[316250062,1709412642970,-509.74,0.00023998,2]
[316250064,1709412642979,-509.74,0.00023998,2]
[316250066,1709412642988,-1066.21,0.00023998,2]
[316250068,1709412642998,-1066.21,0.00023998,2]
[316250070,1709412643008,-500.0,0.00023998,2]
[316250072,1709412643018,-500.0,0.00023998,2]
[316250074,1709412643027,-500.0,0.00023998,2]
[316250076,1709412643036,-500.0,0.00023998,2]
[316250078,1709412643045,-772.36,0.00023998,2]
[316250080,1709412643054,-772.36,0.00023998,2]
[316250082,1709412643064,-996.72,0.00023998,2]
[316250084,1709412643073,-996.72,0.00023998,2]
[316250086,1709412643083,-500.0,0.00023998,2]
[316250088,1709412643092,-500.0,0.00023998,2]
[316250090,1709412643102,-187.68100481,0.00023998,2]
[316250092,1709412643111,-160.0,0.00023999,2]
[316250094,1709412643121,-160.0,0.00023999,2]
[316250096,1709412643130,-160.0,0.00023999,2]
[316250099,1709412643140,-334.90389526,0.00023999,2]
[316250101,1709412643149,-500.0,0.00023999,2]
[316250102,1709412643159,-593.83118425,0.00023999,2]
[316250104,1709412643169,-500.0,0.00023999,2]
[316250106,1709412643179,-500.0,0.00023999,2]
[316250109,1709412643188,-204.4532614,0.00023999,2]
[316250111,1709412643198,-500.0,0.00023999,2]
[316250113,1709412643207,-500.0,0.00023999,2]
[316250115,1709412643217,-500.0,0.00023999,2]
[316250117,1709412643227,-225.0,0.00023999,2]
[316250120,1709412643235,-500.0,0.00023999,2]
[316250122,1709412643245,-500.0,0.00023999,2]
[316250125,1709412643254,-500.0,0.00023999,2]
[316250127,1709412643263,-500.0,0.00023999,2]
[316250139,1709412643367,-500.0,0.00023999,2]
[316250141,1709412643380,-222.22,0.00023999,2]
[316250143,1709412643390,-500.0,0.00023999,2]
[316250145,1709412643400,-500.0,0.00023999,2]
[316250147,1709412643411,-500.0,0.00023999,2]
[316250149,1709412643420,-500.0,0.00023999,2]
[316250151,1709412643430,-500.0,0.00023999,2]
[316250154,1709412643439,-500.0,0.00023999,2]
[316250156,1709412643448,-500.0,0.00023999,2]
[316250157,1709412643458,-446.36,0.00023999,2]
[316250159,1709412643467,-500.0,0.00023999,2]
[316250161,1709412643476,-500.0,0.00023999,2]
[316250164,1709412643485,-500.0,0.00023999,2]
[316250166,1709412643495,-500.0,0.00023999,2]
[316250168,1709412643504,-500.0,0.00023999,2]
[316250169,1709412643513,-500.0,0.00023999,2]
[316250171,1709412643523,-500.0,0.00023999,2]
[316250173,1709412643532,-500.0,0.00023999,2]
[316250175,1709412643541,-223.22,0.00023999,2]
[316250178,1709412643551,-2000.54,0.00023999,2]
[316250179,1709412643560,-2000.54,0.00023999,2]
[316250181,1709412643570,-2000.54,0.00023999,2]
[316250183,1709412643579,-2000.54,0.00023999,2]
[316250185,1709412643588,-2000.54,0.00023999,2]
[316250187,1709412643598,-2000.54,0.00023999,2]
[316250190,1709412643608,-2000.54,0.00023999,2]
[316250192,1709412643619,-2000.55602998,0.00023999,2]
[316250193,1709412643629,-500.0,0.00023999,2]
[316250195,1709412643639,-500.0,0.00023999,2]
[316250197,1709412643649,-500.0,0.00023999,2]
[316250199,1709412643660,-500.0,0.00023999,2]
[316250201,1709412643670,-500.0,0.00023999,2]
[316250204,1709412643680,-500.0,0.00023999,2]
[316250206,1709412643689,-500.0,0.00023999,2]
[316250207,1709412643698,-500.0,0.00023999,2]
[316250209,1709412643708,-500.0,0.00023999,2]
[316250211,1709412643717,-500.0,0.00023999,2]
[316250214,1709412643727,-500.0,0.00023999,2]
[316250216,1709412643736,-500.0,0.00023999,2]
[316250217,1709412643745,-390.3,0.00023999,2]
[316250219,1709412643754,-509.74,0.00023999,2]
[316250221,1709412643764,-509.74,0.00023999,2]
[316250223,1709412643773,-509.74,0.00023999,2]
[316250226,1709412643783,-509.74,0.00023999,2]
[316250228,1709412643792,-509.74,0.00023999,2]
[316250230,1709412643801,-509.74,0.00023999,2]
[316250232,1709412643810,-509.74,0.00023999,2]
[316250234,1709412643819,-509.74,0.00023999,2]
[316250236,1709412643828,-509.74,0.00023999,2]
[316250237,1709412643838,-509.74,0.00023999,2]
[316250240,1709412643848,-509.74,0.00023999,2]
[316250241,1709412643857,-509.74,0.00023999,2]
[316250243,1709412643866,-509.74,0.00023999,2]
[316250246,1709412643876,-509.74,0.00023999,2]
[316250248,1709412643885,-509.74,0.00023999,2]
[316250250,1709412643895,-509.74,0.00023999,2]
[316250252,1709412643904,-509.97039915,0.00023999,2]
[316250253,1709412643913,-1066.21,0.00023999,2]
[316250256,1709412643923,-1066.21,0.00023999,2]
[316250258,1709412643933,-1066.21,0.00023999,2]
[316250259,1709412643943,-1066.21,0.00023999,2]
[316250261,1709412643953,-1066.21,0.00023999,2]
[316250263,1709412643963,-1066.21,0.00023999,2]
[316250265,1709412643973,-1066.21,0.00023999,2]
[316250267,1709412643983,-1066.21,0.00023999,2]
[316250269,1709412643992,-1066.21,0.00023999,2]
[316250271,1709412644002,-1066.21,0.00023999,2]
[316250273,1709412644012,-1066.21,0.00023999,2]
[316250275,1709412644022,-1066.21,0.00023999,2]
[316250277,1709412644032,-1066.21,0.00023999,2]
[316250279,1709412644042,-1066.21,0.00023999,2]
[316250281,1709412644052,-1066.21,0.00023999,2]
[316250283,1709412644062,-1066.21,0.00023999,2]
[316250285,1709412644072,-1066.23273006,0.00023999,2]
[316250287,1709412644082,-391.08274564,0.00023999,2]
[316250289,1709412644092,-487.88,0.00023999,2]
[316250291,1709412644101,-772.36,0.00023999,2]
[316250293,1709412644110,-772.36,0.00023999,2]
[316250295,1709412644120,-772.36,0.00023999,2]
[316250297,1709412644129,-772.36,0.00023999,2]
[316250299,1709412644139,-772.36,0.00023999,2]
[316250301,1709412644148,-772.36,0.00023999,2]
[316250303,1709412644157,-772.36,0.00023999,2]
[316250305,1709412644166,-772.36,0.00023999,2]
[316250307,1709412644175,-772.36,0.00023999,2]
[316250309,1709412644184,-772.36,0.00023999,2]
[316250311,1709412644193,-772.36,0.00023999,2]
[316250313,1709412644202,-772.36,0.00023999,2]
[316250315,1709412644212,-772.36,0.00023999,2]
[316250317,1709412644222,-772.36,0.00023999,2]
[316250319,1709412644230,-772.36,0.00023999,2]
[316250321,1709412644239,-772.36,0.00023999,2]
[316250323,1709412644248,-772.36,0.00023999,2]
[316250325,1709412644257,-772.36,0.00023999,2]
[316250327,1709412644266,-772.36005152,0.00023999,2]
[316250329,1709412644275,-996.72,0.00023999,2]
[316250331,1709412644285,-996.72,0.00023999,2]
[316250333,1709412644294,-996.72,0.00023999,2]
[316250335,1709412644306,-996.72,0.00023999,2]
[316250337,1709412644315,-996.72,0.00023999,2]
[316250338,1709412644330,-996.72,0.00023999,2]
[316250340,1709412644340,-996.72,0.00023999,2]
[316250342,1709412644350,-996.72,0.00023999,2]
[316250344,1709412644359,-996.72,0.00023999,2]
[316250346,1709412644368,-996.72,0.00023999,2]
[316250348,1709412644379,-996.72,0.00023999,2]
[316250350,1709412644389,-996.72,0.00023999,2]
[316250352,1709412644399,-996.72,0.00023999,2]
[316250354,1709412644408,-996.72,0.00023999,2]
[316250356,1709412644417,-996.72,0.00023999,2]
[316250358,1709412644426,-996.72,0.00023999,2]
[316250360,1709412644435,-996.7551027,0.00023999,2]
[316250362,1709412644444,-500.0,0.00023999,2]
[316250364,1709412644454,-483.9448284,0.00023999,2]
[316250366,1709412644463,-276460.27683255,0.00024,5]
[316250395,1709412644735,-500.0,0.00022595,2]
[316250397,1709412644745,-500.0,0.00022596,2]
[316250399,1709412644756,-500.0,0.00023996,2]
[316250401,1709412644765,-500.0,0.00023997,2]
[316250403,1709412644773,-171.07,0.00023998,2]
[316250405,1709412644782,-519.27325989,0.00024,5]
[316250407,1709412644794,-1401.49993163,0.00024,5]
[316250410,1709412644805,-165035.13601764,0.00024,5]
[316250412,1709412644816,-16298.25177335,0.00024,5]
[316250414,1709412644827,-62081.10512237,0.00024,5]
[316250420,1709412644871,-500.0,0.00022595,2]
[316250422,1709412644880,-386.027425,0.00022597,2]
[316250424,1709412644891,-113.972575,0.00022597,2]
[316250425,1709412644900,-207.60786392,0.00022708,2]
[316250605,1709412646828,-432.27687874,0.00022708,2]
[316250607,1709412646839,-155.43774279,0.00023998,2]
[316250609,1709412646849,-206.29224074,0.00023998,2]
[316250610,1709412646858,-151.05,0.00023999,2]
[316250612,1709412646867,-9956.32780013,0.00024,5]
[316250680,1709412647513,-20843.89309107,0.00023999,2]
[316250682,1709412647523,-72709.98190893,0.00024,5]
[316252862,1709412836121,1415.66442574,0.00019,2]
[316252864,1709412864705,1868.20859616,0.00020987,2]
[316252865,1709412869836,62996.11721234,0.00019,2]
[316252868,1709413548664,653.15880675,0.000189,2]
[316252897,1709413817165,-883.67733257,0.00021747,2]
[316252898,1709413817199,-317.26763001,0.00021747,2]
[316252899,1709413817234,-324.78278527,0.00021748,2]
[316252900,1709413817267,-697.26958026,0.00021749,2]
[316252901,1709413818146,744.79129449,0.00021746,2]
[316252927,1709413833128,-155.0418613,0.00021804,2]
[316252928,1709413833140,-500.0,0.00021809,2]
[316252929,1709413833150,-500.0,0.00021809,2]
[316252930,1709413833159,-500.0,0.00021809,2]
[316252931,1709413833168,-500.0,0.00021809,2]
[316252932,1709413833177,-72.96333792,0.00021822,2]
[316252933,1709413833190,-427.03666208,0.00021822,2]
[316252934,1709413833199,-384.43965354,0.00021822,2]
[316252935,1709413833209,-134.3441126,0.00021822,2]
[316252936,1709413836035,-317.47634962,0.00021822,2]
[316252937,1709413836071,-500.0,0.00021822,2]
[316252938,1709413836106,-500.0,0.00021822,2]
[316252939,1709413836142,-500.0,0.00021822,2]
[316253245,1709413841719,-175.0,0.0002247,3]
[316253247,1709413841729,-165.89037482,0.0002247,3]
[316253249,1709413841739,-153.91941716,0.0002247,3]
[316253251,1709413841748,-500.0,0.00022595,2]
[316253253,1709413841758,-500.0,0.00022595,2]
[316253255,1709413841768,-500.0,0.00022595,2]
[316253257,1709413841777,-500.0,0.00022595,2]
[316253259,1709413841787,-500.0,0.00022595,2]
[316253261,1709413841797,-330.40732907,0.00022595,2]
[316253263,1709413841807,-500.0,0.00022595,2]
[316253265,1709413841817,-265.52624922,0.00022595,2]
[316253267,1709413841826,-500.0,0.00022595,2]
[316253269,1709413841836,-500.0,0.00022595,2]
[316253271,1709413841846,-500.0,0.00022595,2]
[316253273,1709413841855,-500.0,0.00022595,2]
[316253275,1709413841864,-500.0,0.00022595,2]
[316253277,1709413841874,-500.0,0.00022595,2]
[316253279,1709413841883,-500.0,0.00022595,2]
[316253281,1709413841893,-500.0,0.00022595,2]
[316253283,1709413841902,-500.0,0.00022595,2]
[316253285,1709413841912,-500.0,0.00022595,2]
[316253287,1709413841921,-500.0,0.00022595,2]
[316253289,1709413841930,-500.0,0.00022595,2]
[316253291,1709413841939,-500.0,0.00022595,2]
[316253293,1709413841948,-500.0,0.00022595,2]
[316253295,1709413841957,-500.0,0.00022595,2]
[316253297,1709413841966,-570.2,0.00022595,2]
[316253299,1709413841977,-255.55957885,0.00022595,2]
[316253301,1709413841986,-500.0,0.00022595,2]
[316253303,1709413841996,-500.0,0.00022595,2]
[316253305,1709413842005,-500.0,0.00022595,2]
[316253307,1709413842014,-500.0,0.00022595,2]
[316253309,1709413842023,-500.0,0.00022595,2]
[316253311,1709413842032,-500.0,0.00022595,2]
[316253313,1709413842041,-500.0,0.00022595,2]
[316253315,1709413842050,-500.0,0.00022595,2]
[316253317,1709413842059,-279.97141697,0.00022595,2]
[316253319,1709413842068,-500.0,0.00022595,2]
[316253321,1709413842077,-231.44576944,0.00022595,2]
[316253323,1709413842089,-282.54245786,0.00022595,2]
[316253325,1709413842098,-500.0,0.00022595,2]
[316253327,1709413842107,-500.0,0.00022595,2]
[316253329,1709413842116,-500.0,0.00022595,2]
[316253331,1709413842125,-500.0,0.00022595,2]
[316253333,1709413842135,-500.0,0.00022595,2]
[316253335,1709413842144,-500.0,0.00022595,2]
[316253337,1709413842153,-500.0,0.00022595,2]
[316253339,1709413842162,-2393.99,0.00022595,2]
[316253341,1709413842172,-500.0,0.00022595,2]
[316253343,1709413842180,-500.0,0.00022595,2]
[316253345,1709413842189,-391.08274564,0.00022595,2]
[316253347,1709413842199,-851.14,0.00022595,2]
[316253349,1709413842209,-500.0,0.00022595,2]
[316253351,1709413842218,-500.0,0.00022595,2]
[316253353,1709413842227,-500.0,0.00022595,2]
[316253355,1709413842236,-500.0,0.00022595,2]
[316253357,1709413842245,-706.01,0.00022595,2]
[316253359,1709413842255,-500.0,0.00022595,2]
[316253361,1709413842264,-502.51790943,0.00022596,2]
[316253363,1709413842274,-378.30718742,0.00022596,2]
[316253365,1709413842283,-317.38,0.00022596,2]
[316253367,1709413842292,-416.61971535,0.00022596,2]
[316253369,1709413842301,-500.0,0.00022596,2]
[316253371,1709413842311,-500.0,0.00022596,2]
[316253373,1709413842321,-175.78279526,0.00022596,2]
[316253375,1709413842331,-501.01152787,0.00022596,2]
[316253377,1709413842340,-500.0,0.00022596,2]
[316253381,1709413842349,-500.0,0.00022596,2]
[316253384,1709413842359,-500.0,0.00022596,2]
[316253388,1709413842368,-500.0,0.00022597,2]
[316253392,1709413842377,-500.0,0.00022597,2]
[316253396,1709413842385,-500.0,0.00022597,2]
[316253400,1709413842394,-500.0,0.00022597,2]
[316253404,1709413842403,-380.67548677,0.00022597,2]
[316253409,1709413842416,-500.0,0.00022647,2]
[316253412,1709413842428,-484.69880166,0.00022708,2]
[316253415,1709413842439,-500.0,0.00022708,2]
[316253420,1709413842451,-500.0,0.00022708,2]
[316253424,1709413842462,-1485.64,0.00022708,2]
[316253430,1709413842473,-1393.49,0.00022708,2]
[316253436,1709413842484,-673.95,0.00022708,2]
[316253438,1709413842495,-417.00400785,0.00022757,4]
[316253440,1709413842505,-5810.95785659,0.00022759,5]
[316253443,1709413842515,-200.6643816,0.00022978,2]
[316253445,1709413842526,-155.0,0.00022999,2]
[316253449,1709413842536,-153.0,0.00023178,2]
[316253451,1709413842547,-401.3287632,0.00023178,2]
[316253453,1709413842558,-153.0,0.00023178,2]
[316253455,1709413842569,-153.0,0.00023178,2]
[316253457,1709413842580,-577.32724681,0.00023465,2]
[316253460,1709413842591,-500.0,0.00023603,2]
[316253462,1709413842602,-500.0,0.00023603,2]
[316253464,1709413842612,-500.0,0.000237,2]
[316253466,1709413842623,-604.06163158,0.000237,2]
[316253468,1709413842636,-500.0,0.000237,2]
[316253470,1709413842648,-500.0,0.000237,2]
[316253472,1709413842659,-527.39049889,0.000237,2]
[316253475,1709413842670,-500.0,0.000237,2]
[316253477,1709413842682,-2393.99,0.000237,2]
[316253479,1709413842693,-851.14,0.000237,2]
[316253481,1709413842703,-500.0,0.000237,2]
[316253483,1709413842715,-706.01,0.000237,2]
[316253485,1709413842726,-500.0,0.000237,2]
[316253487,1709413842736,-5000.0,0.00023701,5]
[316253489,1709413842746,-555.54,0.00023798,2]
[316253490,1709413842757,-500.0,0.00023798,2]
[316253491,1709413842767,-500.0,0.00023798,2]
[316253492,1709413842777,-500.0,0.00023799,2]
[316253493,1709413842787,-500.0,0.00023799,2]
[316253494,1709413842797,-602.715477,0.00023799,2]
[316253495,1709413842808,-500.0,0.00023816,2]
[316253496,1709413842818,-765.416,0.00023899,2]
[316253497,1709413842829,-500.0,0.00023899,2]
[316253498,1709413842839,-500.0,0.00023899,2]
[316253499,1709413842848,-765.416,0.00023899,2]
[316253500,1709413842859,-765.416,0.000239,2]
[316253501,1709413842869,-765.416,0.000239,2]
[316253502,1709413842880,-653.15880675,0.000239,2]
[316253503,1709413842891,-765.416,0.000239,2]
[316253504,1709413842901,-500.0,0.00023994,2]
[316253505,1709413842912,-2393.99,0.00023994,2]
[316253506,1709413842921,-851.14,0.00023994,2]
[316253507,1709413842931,-500.0,0.00023994,2]
[316253509,1709413842940,-706.01,0.00023994,2]
[316253510,1709413842949,-500.0,0.00023994,2]
[316253512,1709413842959,-500.0,0.00023996,2]
[316253515,1709413842970,-1485.64,0.00023996,2]
[316253517,1709413842981,-1393.49,0.00023996,2]
[316253519,1709413842991,-500.0,0.00023996,2]
[316253521,1709413843002,-673.95,0.00023996,2]
[316253523,1709413843012,-500.0,0.00023997,2]
[316253525,1709413843023,-500.0,0.00023997,2]
[316253528,1709413843034,-500.0,0.00023997,2]
[316253530,1709413843044,-2393.99,0.00023997,2]
[316253532,1709413843054,-851.14,0.00023997,2]
[316253534,1709413843063,-500.0,0.00023997,2]
[316253536,1709413843075,-500.0,0.00023997,2]
[316253538,1709413843084,-706.01,0.00023997,2]
[316253540,1709413843094,-591.7948284,0.00023997,2]
[316253542,1709413843105,-178.81044341,0.00023998,2]
[316253544,1709413843115,-334.59809481,0.00023998,2]
[316253546,1709413843125,-8868.60927529,0.00023998,2]
[316253548,1709413843136,-2790.81002196,0.00023998,2]
[316253551,1709413843148,-2804.999994,0.00023998,2]
[316253553,1709413843158,-155.0341075,0.00023998,2]
[316253555,1709413843168,-1485.64,0.00023998,2]
[316253557,1709413843178,-1485.64,0.00023998,2]
[316253559,1709413843190,-500.0,0.00023998,2]
[316253561,1709413843201,-500.0,0.00023998,2]
[316253563,1709413843212,-1393.49,0.00023998,2]
[316253566,1709413843223,-1393.49,0.00023998,2]
[316253568,1709413843233,-500.0,0.00023998,2]
[316253570,1709413843244,-500.0,0.00023998,2]
[316253572,1709413843255,-500.0,0.00023998,2]
[316253574,1709413843265,-673.95,0.00023998,2]
[316253576,1709413843275,-673.95,0.00023998,2]
[316253578,1709413843286,-2393.99,0.00023998,2]
[316253580,1709413843296,-2393.99,0.00023998,2]
[316253583,1709413843305,-851.14,0.00023998,2]
[316253585,1709413843315,-851.14,0.00023998,2]
[316253587,1709413843324,-500.0,0.00023998,2]
[316253589,1709413843334,-500.0,0.00023998,2]
[316253591,1709413843343,-500.0,0.00023998,2]
[316253593,1709413843353,-706.01,0.00023998,2]
[316253595,1709413843363,-706.01,0.00023998,2]
[316253597,1709413843373,-744.79129449,0.00023998,2]
[316253599,1709413843383,-697.26958026,0.00023998,2]
[316253601,1709413843394,-324.78278527,0.00023998,2]
[316253603,1709413843404,-883.67733257,0.00023998,2]
[316253605,1709413843414,-5346.36252039,0.00023999,2]
[316253607,1709413843424,-649.73060501,0.00023999,2]
[316253609,1709413843435,-170.85740309,0.00023999,2]
[316253611,1709413843446,-287.73612522,0.00023999,2]
[316253614,1709413843456,-152.49609942,0.00023999,2]
[316253616,1709413843467,-416.99443606,0.00023999,2]
[316253618,1709413843477,-186.5154176,0.00023999,2]
[316253620,1709413843489,-498.75964717,0.00023999,2]
[316253622,1709413843499,-500.0,0.00023999,2]
[316253624,1709413843510,-1485.64,0.00023999,2]
[316253626,1709413843521,-1485.64,0.00023999,2]
[316253628,1709413843531,-1485.64,0.00023999,2]
[316253630,1709413843540,-1485.64,0.00023999,2]
[316253633,1709413843549,-1485.64,0.00023999,2]
[316253635,1709413843559,-1485.64,0.00023999,2]